fUST/lending_fUST_20250214
["ID","MTS","AMOUNT","RATE_DAILY","PERIOD"]
[352975581,1739470247631,-500.0,0.00013945,2]
[352975582,1739470247641,-500.0,0.00013945,2]
[352975583,1739470247650,-500.0,0.00013945,2]
[352975584,1739470247660,-500.0,0.00013945,2]
[352975585,1739470247670,-500.0,0.00013945,2]
[352975586,1739470247679,-714.3,0.00013945,2]
[352975587,1739470247690,-500.0,0.00013945,2]
[352975588,1739470247699,-500.0,0.00013945,2]
[352975589,1739470247710,-500.0,0.00013945,2]
[352975590,1739470247719,-842.54,0.00013945,2]
[352975591,1739470247728,-500.0,0.00013945,2]
[352975592,1739470247738,-500.0,0.00013945,2]
[352975593,1739470247748,-1771.49,0.00013945,2]
[352975594,1739470247758,-500.0,0.00013945,2]
[352975595,1739470247767,-500.0,0.00013945,2]
[352975596,1739470247778,-259.574135,0.00013945,2]
[352975597,1739470247787,-259.574135,0.00013945,2]
[352975598,1739470247797,-357.406298,0.00013945,2]
[352975599,1739470247807,-357.406298,0.00013945,2]
[352975600,1739470247817,-259.574135,0.00013945,2]
[352975601,1739470247828,-259.574135,0.00013945,2]
[352975602,1739470247838,-500.0,0.00013945,2]
[352975603,1739470247847,-500.0,0.00013945,2]
[352975604,1739470247857,-500.0,0.00013945,2]
[352975605,1739470247867,-500.0,0.00013945,2]
[352975606,1739470247876,-500.0,0.00013945,2]
[352975607,1739470247886,-1811.14,0.00013945,2]
[352975608,1739470247895,-500.0,0.00013945,2]
[352975609,1739470247906,-500.0,0.00013945,2]
[352975610,1739470247916,-500.0,0.00013945,2]
[352975611,1739470247925,-1157.87,0.00013945,2]
[352975612,1739470247935,-151.0,0.00013945,2]
[352975613,1739470247945,-151.0,0.00013945,2]
[352975614,1739470247955,-500.0,0.00013945,2]
[352975615,1739470247965,-500.0,0.00013945,2]
[352975616,1739470247975,-500.0,0.00013945,2]
[352975617,1739470247985,-500.0,0.00013945,2]
[352975618,1739470247994,-500.0,0.00013945,2]
[352975619,1739470248004,-1404.06,0.00013945,2]
[352975620,1739470248014,-500.0,0.00013945,2]
[352975621,1739470248024,-547.08,0.00013945,2]
[352975622,1739470248035,-500.0,0.00013945,2]
[352975623,1739470248045,-620.3,0.00013945,2]
[352975624,1739470248055,-1248.39,0.00013945,2]
[352975625,1739470248065,-214.188731,0.00013945,2]
[352975626,1739470248075,-214.188731,0.00013945,2]
[352975627,1739470248085,-500.0,0.00013945,2]
[352975628,1739470248095,-214.188731,0.00013945,2]
[352975629,1739470248105,-214.188731,0.00013945,2]
[352975630,1739470248114,-500.0,0.00013945,2]
[352975631,1739470248124,-3356.66,0.00013945,2]
[352975632,1739470248133,-500.0,0.00013945,2]
[352975633,1739470248143,-538.22,0.00013945,2]
[352975634,1739470248153,-500.0,0.00013945,2]
[352975635,1739470248163,-500.0,0.00013945,2]
[352975636,1739470248172,-665.34,0.00013945,2]
[352975637,1739470248181,-500.0,0.00013945,2]
[352975638,1739470248191,-500.0,0.00013945,2]
[352975639,1739470248202,-500.0,0.00013945,2]
[352975641,1739470248213,-217.69614,0.00013945,2]
[352975643,1739470248224,-500.0,0.00013945,2]
[352975645,1739470248234,-950.97,0.00013945,2]
[352975647,1739470248244,-500.0,0.00013945,2]
[352975649,1739470248255,-500.0,0.00013945,2]
[352975650,1739470248265,-500.0,0.00013945,2]
[352975652,1739470248276,-500.0,0.00013945,2]
[352975653,1739470248287,-5258.07,0.00013945,2]
[352975654,1739470248297,-500.0,0.00013945,2]
[352975655,1739470248307,-500.0,0.00013945,2]
[352975656,1739470248317,-1848.46,0.00013945,2]
[352975657,1739470248327,-2865.79,0.00013945,2]
[352975658,1739470248338,-500.0,0.00013945,2]
[352975659,1739470248348,-500.0,0.00013945,2]
[352975660,1739470248359,-500.0,0.00013945,2]
[352975661,1739470248371,-305.28697078,0.00013945,2]
[352975662,1739470248381,-500.0,0.00013945,2]
[352975663,1739470248391,-500.0,0.00013945,2]
[352975664,1739470248402,-150.23,0.00013945,2]
[352975665,1739470248413,-500.0,0.00013945,2]
[352975666,1739470248423,-150.23,0.00013945,2]
[352975667,1739470248436,-500.0,0.00013945,2]
[352975668,1739470248447,-500.0,0.00013945,2]
[352975669,1739470248458,-3304.14,0.00013945,2]
[352975670,1739470248468,-500.0,0.00013945,2]
[352975671,1739470248479,-280.04847812,0.00013945,2]
[352975672,1739470248489,-500.0,0.00013945,2]
[352975673,1739470248500,-5468.71,0.00013945,2]
[352975674,1739470248510,-500.0,0.00013945,2]
[352975675,1739470248525,-150.23,0.00013945,2]
[352975676,1739470248535,-500.0,0.00013945,2]
[352975677,1739470248546,-13524.5,0.00013945,2]
[352975678,1739470248556,-500.0,0.00013945,2]
[352975679,1739470248566,-645.922417,0.00013945,2]
[352975680,1739470248576,-645.922417,0.00013945,2]
[352975681,1739470248587,-500.0,0.00013945,2]
[352975682,1739470248597,-645.922417,0.00013945,2]
[352975683,1739470248609,-645.922417,0.00013945,2]
[352975684,1739470248619,-1068.79,0.00013945,2]
[352975685,1739470248629,-500.0,0.00013945,2]
[352975686,1739470248641,-500.0,0.00013945,2]
[352975687,1739470248651,-500.0,0.00013945,2]
[352975688,1739470248661,-500.0,0.00013945,2]
[352975689,1739470248670,-1080.9,0.00013945,2]
[352975690,1739470248680,-512.88548022,0.00013945,2]
[352975691,1739470248692,-860.53,0.00013945,2]
[352975692,1739470248709,-500.0,0.00013945,2]
[352975693,1739470248720,-500.0,0.00013945,2]
[352975694,1739470248730,-564.43,0.00013945,2]
[352975695,1739470248740,-500.0,0.00013945,2]
[352975696,1739470248751,-500.0,0.00013945,2]
[352975697,1739470248762,-1138.27,0.00013945,2]
[352975698,1739470248774,-500.0,0.00013945,2]
[352975699,1739470248785,-500.0,0.00013945,2]
[352975700,1739470248795,-500.0,0.00013945,2]
[352975701,1739470248806,-500.0,0.00013945,2]
[352975702,1739470248817,-500.0,0.00013945,2]
[352975703,1739470248829,-1542.38,0.00013945,2]
[352975704,1739470248840,-500.0,0.00013945,2]
[352975705,1739470248850,-500.0,0.00013945,2]
[352975706,1739470248862,-500.0,0.00013945,2]
[352975707,1739470248872,-500.0,0.00013945,2]
[352975708,1739470248883,-805.58,0.00013945,2]
[352975709,1739470248894,-549.11,0.00013945,2]
[352975710,1739470248903,-500.0,0.00013945,2]
[352975711,1739470248915,-500.0,0.00013945,2]
[352975712,1739470248925,-3706.87,0.00013945,2]
[352975713,1739470248935,-1313.58,0.00013945,2]
[352975714,1739470248945,-500.0,0.00013945,2]
[352975715,1739470248955,-500.0,0.00013945,2]
[352975716,1739470248964,-37764.68,0.00013945,2]
[352975717,1739470248974,-500.0,0.00013945,2]
[352975718,1739470248984,-506.47143884,0.00013945,2]
[352975719,1739470248995,-2185.25,0.00013945,2]
[352975720,1739470249004,-500.0,0.00013945,2]
[352975721,1739470249015,-500.0,0.00013945,2]
[352975722,1739470249026,-500.0,0.00013945,2]
[352975723,1739470249036,-2541.46,0.00013945,2]
[352975724,1739470249046,-15778.94,0.00013945,2]
[352975725,1739470249056,-1486.19,0.00013945,2]
[352975726,1739470249067,-500.0,0.00013945,2]
[352975727,1739470249078,-500.0,0.00013945,2]
[352975728,1739470249089,-1807.37,0.00013945,2]
[352975729,1739470249100,-500.0,0.00013945,2]
[352975730,1739470249110,-500.0,0.00013945,2]
[352975731,1739470249120,-150.23,0.00013945,2]
[352975732,1739470249132,-500.0,0.00013945,2]
[352975733,1739470249142,-150.23,0.00013945,2]
[352975734,1739470249153,-152.35204526,0.00013945,2]
[352975735,1739470249164,-420.775674,0.00013945,2]
[352975736,1739470249173,-420.775674,0.00013945,2]
[352975737,1739470249184,-964.0,0.00013945,2]
[352975738,1739470249198,-500.0,0.00013945,2]
[352975739,1739470249208,-500.0,0.00013945,2]
[352975740,1739470249219,-500.0,0.00013945,2]
[352975741,1739470249230,-420.775674,0.00013945,2]
[352975742,1739470249241,-420.775674,0.00013945,2]
[352975743,1739470249252,-500.0,0.00013945,2]
[352975744,1739470249263,-500.0,0.00013945,2]
[352975745,1739470249273,-500.0,0.00013945,2]
[352975746,1739470249283,-150.23,0.00013945,2]
[352975747,1739470249294,-1081.62,0.00013945,2]
[352975748,1739470249304,-588.0,0.00013945,2]
[352975749,1739470249316,-3207.31,0.00013945,2]
[352975750,1739470249327,-500.0,0.00013945,2]
[352975751,1739470249338,-1423.47,0.00013945,2]
[352975752,1739470249349,-150.23,0.00013945,2]
[352975753,1739470249359,-500.0,0.00013945,2]
[352975754,1739470249370,-1473.73,0.00013945,2]
[352975755,1739470249381,-500.0,0.00013945,2]
[352975756,1739470249391,-500.0,0.00013945,2]
[352975757,1739470249402,-500.0,0.00013945,2]
[352975758,1739470249413,-557.67,0.00013945,2]
[352975759,1739470249422,-500.0,0.00013945,2]
[352975760,1739470249431,-946.59,0.00013945,2]
[352975761,1739470249443,-1257.35,0.00013945,2]
[352975762,1739470249453,-500.0,0.00013945,2]
[352975763,1739470249462,-663.31,0.00013945,2]
[352975764,1739470249473,-500.0,0.00013945,2]
[352975765,1739470249484,-563.05,0.00013945,2]
[352975766,1739470249494,-500.0,0.00013945,2]
[352975767,1739470249504,-240.54591234,0.00013945,2]
[352975768,1739470249514,-500.0,0.00013945,2]
[352975769,1739470249524,-1895.87,0.00013945,2]
[352975770,1739470249534,-1188.39,0.00013945,2]
[352975771,1739470249544,-500.0,0.00013945,2]
[352975772,1739470249556,-580.8,0.00013945,2]
[352975773,1739470249566,-500.0,0.00013945,2]
[352975774,1739470249576,-500.0,0.00013945,2]
[352975775,1739470249587,-1716.616873,0.00013945,2]
[352975776,1739470249599,-1716.616873,0.00013945,2]
[352975777,1739470249714,-500.0,0.00013945,2]
[352975778,1739470249725,-1716.616873,0.00013945,2]
[352975779,1739470249735,-1716.616873,0.00013945,2]
[352975780,1739470249747,-500.0,0.00013945,2]
[352975781,1739470249758,-622.63,0.00013945,2]
[352975782,1739470249768,-824.57,0.00013945,2]
[352975783,1739470249778,-500.0,0.00013945,2]
[352975784,1739470249787,-574.7,0.00013945,2]
[352975785,1739470249796,-500.0,0.00013945,2]
[352975786,1739470249806,-500.0,0.00013945,2]
[352975787,1739470249816,-500.0,0.00013945,2]
[352975788,1739470249828,-500.0,0.00013945,2]
[352975789,1739470249838,-500.0,0.00013945,2]
[352975790,1739470249848,-500.0,0.00013945,2]
[352975791,1739470249858,-500.0,0.00013945,2]
[352975792,1739470249868,-500.0,0.00013945,2]
[352975793,1739470249878,-6667.82,0.00013945,2]
[352975794,1739470249888,-587.22,0.00013945,2]
[352975795,1739470249898,-154.6488878,0.00013945,2]
[352975796,1739470249909,-154.6488878,0.00013945,2]
[352975797,1739470249919,-215.9004297,0.00013945,2]
[352975798,1739470249929,-215.9004297,0.00013945,2]
[352975799,1739470249938,-154.5591815,0.00013945,2]
[352975800,1739470249950,-215.7800676,0.00013945,2]
[352975801,1739470249959,-468.48754041,0.0001396,2]
[352975802,1739470249970,-1000.0,0.00014,14]
[352975803,1739470249980,-1625.22164105,0.00014,2]
[352975804,1739470249991,-418.18341049,0.00014,3]
[352975805,1739470250001,-1000.0,0.00014,2]
[352975806,1739470250011,-12717.18960338,0.00014,2]
[352975807,1739470250020,-172.299955,0.00014026,2]
[352975808,1739470250030,-200.52147,0.00014027,2]
[352975809,1739470250039,-198.102241,0.00014027,2]
[352975810,1739470250049,-198.102241,0.00014027,2]
[352975811,1739470250058,-198.102241,0.00014027,2]
[352975812,1739470250067,-198.102241,0.00014027,2]
[352975813,1739470250077,-151.0,0.00014027,2]
[352975814,1739470250087,-151.0,0.00014027,2]
[352975815,1739470250098,-500.0,0.00014027,2]
[352975816,1739470250108,-500.0,0.00014027,2]
[352975817,1739470250118,-500.0,0.00014027,2]
[352975818,1739470250127,-500.0,0.00014027,2]
[352975819,1739470250136,-529.85592802,0.00014027,2]
[352975820,1739470250146,-500.0,0.00014027,2]
[352975821,1739470250155,-500.0,0.00014027,2]
[352975822,1739470250164,-500.0,0.00014027,2]
[352975823,1739470250175,-500.0,0.00014027,2]
[352975824,1739470250184,-548.40982576,0.00014027,2]
[352975825,1739470250194,-500.0,0.00014027,2]
[352975826,1739470250204,-648.83,0.00014027,2]
[352975827,1739470250213,-500.0,0.00014027,2]
[352975828,1739470250223,-500.0,0.00014027,2]
[352975829,1739470250233,-500.0,0.00014027,2]
[352975830,1739470250243,-500.0,0.00014027,2]
[352975831,1739470250252,-700.96,0.00014027,2]
[352975832,1739470250262,-500.0,0.00014027,2]
[352975833,1739470250272,-500.0,0.00014027,2]
[352975834,1739470250281,-500.0,0.00014027,2]
[352975835,1739470250291,-913.17,0.00014027,2]
[352975836,1739470250300,-902.77,0.00014027,2]
[352975837,1739470250309,-500.0,0.00014027,2]
[352975838,1739470250319,-500.0,0.00014027,2]
[352975839,1739470250328,-221.321834,0.00014027,2]
[352975840,1739470250338,-502.15309799,0.00014027,2]
[352975841,1739470250348,-557.81,0.00014027,2]
[352975842,1739470250358,-232.75867246,0.00014027,2]
[352975843,1739470250368,-500.0,0.00014027,2]
[352975844,1739470250377,-500.0,0.00014027,2]
[352975845,1739470250387,-246.287683,0.00014027,2]
[352975846,1739470250396,-246.287683,0.00014027,2]
[352975847,1739470250406,-500.0,0.00014027,2]
[352975848,1739470250415,-500.0,0.00014027,2]
[352975849,1739470250425,-246.287683,0.00014027,2]
[352975850,1739470250434,-246.287683,0.00014027,2]
[352975851,1739470250446,-500.0,0.00014027,2]
[352975852,1739470250456,-500.0,0.00014027,2]
[352975853,1739470250465,-500.0,0.00014027,2]
[352975854,1739470250476,-500.0,0.00014027,2]
[352975855,1739470250486,-257.55384059,0.00014027,2]
[352975856,1739470250496,-500.0,0.00014027,2]
[352975857,1739470250506,-500.0,0.00014027,2]
[352975858,1739470250515,-691.35,0.00014027,2]
[352975859,1739470250525,-500.0,0.00014027,2]
[352975860,1739470250534,-500.0,0.00014027,2]
[352975861,1739470250544,-500.0,0.00014027,2]
[352975862,1739470250553,-500.0,0.00014027,2]
[352975863,1739470250563,-500.0,0.00014027,2]
[352975864,1739470250573,-500.0,0.00014027,2]
[352975865,1739470250583,-936.37,0.00014027,2]
[352975866,1739470250592,-500.0,0.00014027,2]
[352975867,1739470250602,-500.0,0.00014027,2]
[352975868,1739470250611,-500.0,0.00014027,2]
[352975869,1739470250621,-500.0,0.00014027,2]
[352975870,1739470250631,-968.527257,0.00014027,2]
[352975871,1739470250640,-500.0,0.00014027,2]
[352975872,1739470250650,-511.62,0.00014027,2]
[352975873,1739470250659,-500.0,0.00014027,2]
[352975874,1739470250668,-968.527257,0.00014027,2]
[352975875,1739470250677,-1148.27,0.00014027,2]
[352975876,1739470250686,-968.527257,0.00014027,2]
[352975877,1739470250697,-968.527257,0.00014027,2]
[352975878,1739470250706,-500.0,0.00014027,2]
[352975879,1739470250715,-500.0,0.00014027,2]
[352975880,1739470250725,-500.0,0.00014027,2]
[352975881,1739470250734,-500.0,0.00014027,2]
[352975882,1739470250743,-868.89,0.00014027,2]
[352975883,1739470250752,-500.0,0.00014027,2]
[352975884,1739470250762,-500.0,0.00014027,2]
[352975885,1739470250771,-508.0938745,0.00014027,2]
[352975886,1739470250781,-500.0,0.00014027,2]
[352975887,1739470250790,-500.0,0.00014027,2]
[352975888,1739470250799,-728.04,0.00014027,2]
[352975889,1739470250809,-500.0,0.00014027,2]
[352975890,1739470250820,-500.0,0.00014027,2]
[352975891,1739470250830,-500.0,0.00014027,2]
[352975892,1739470250839,-630.05456358,0.00014027,2]
[352975893,1739470250849,-500.0,0.00014027,2]
[352975894,1739470250858,-500.0,0.00014027,2]
[352975895,1739470250869,-765.26,0.00014027,2]
[352975896,1739470250878,-882.4,0.00014027,2]
[352975897,1739470250887,-500.0,0.00014027,2]
[352975898,1739470250897,-500.0,0.00014027,2]
[352975899,1739470250908,-500.0,0.00014027,2]
[352975900,1739470250918,-505.3779797,0.00014027,2]
[352975901,1739470250927,-500.0,0.00014027,2]
[352975902,1739470250937,-1295.23,0.00014027,2]
[352975903,1739470250947,-500.0,0.00014027,2]
[352975904,1739470250957,-500.0,0.00014027,2]
[352975905,1739470250966,-500.0,0.00014027,2]
[352975906,1739470250975,-500.0,0.00014027,2]
[352975907,1739470250984,-821.82,0.00014027,2]
[352975908,1739470250994,-500.0,0.00014027,2]
[352975909,1739470251003,-500.0,0.00014027,2]
[352975910,1739470251013,-500.0,0.00014027,2]
[352975911,1739470251023,-500.0,0.00014027,2]
[352975912,1739470251032,-500.0,0.00014027,2]
[352975913,1739470251041,-500.0,0.00014027,2]
[352975914,1739470251051,-714.3,0.00014027,2]
[352975915,1739470251060,-500.0,0.00014027,2]
[352975916,1739470251069,-500.0,0.00014027,2]
[352975917,1739470251079,-500.0,0.00014027,2]
[352975918,1739470251089,-842.54,0.00014027,2]
[352975919,1739470251099,-500.0,0.00014027,2]
[352975920,1739470251108,-500.0,0.00014027,2]
[352975921,1739470251118,-1771.49,0.00014027,2]
[352975922,1739470251127,-500.0,0.00014027,2]
[352975923,1739470251136,-357.406298,0.00014027,2]
[352975924,1739470251146,-357.406298,0.00014027,2]
[352975925,1739470251155,-500.0,0.00014027,2]
[352975926,1739470251164,-259.574135,0.00014027,2]
[352975927,1739470251173,-259.574135,0.00014027,2]
[352975928,1739470251183,-357.406298,0.00014027,2]
[352975929,1739470251193,-357.406298,0.00014027,2]
[352975930,1739470251203,-259.574135,0.00014027,2]
[352975931,1739470251211,-259.574135,0.00014027,2]
[352975932,1739470251220,-500.0,0.00014027,2]
[352975933,1739470251230,-500.0,0.00014027,2]
[352975934,1739470251239,-500.0,0.00014027,2]
[352975935,1739470251249,-500.0,0.00014027,2]
[352975936,1739470251257,-500.0,0.00014027,2]
[352975937,1739470251267,-1811.14,0.00014027,2]
[352975938,1739470251276,-566.37426878,0.00014027,2]
[352975939,1739470251285,-500.0,0.00014027,2]
[352975940,1739470251295,-500.0,0.00014027,2]
[352975941,1739470251304,-1157.87,0.00014027,2]
[352975942,1739470251313,-151.0,0.00014027,2]
[352975943,1739470251323,-151.0,0.00014027,2]
[352975944,1739470251333,-500.0,0.00014027,2]
[352975945,1739470251342,-500.0,0.00014027,2]
[352975946,1739470251352,-500.0,0.00014027,2]
[352975947,1739470251362,-500.0,0.00014027,2]
[352975948,1739470251371,-1404.06,0.00014027,2]
[352975949,1739470251381,-619.37233225,0.00014027,2]
[352975950,1739470251391,-547.08,0.00014027,2]
[352975951,1739470251400,-500.0,0.00014027,2]
[352975952,1739470251410,-620.3,0.00014027,2]
[352975953,1739470251419,-1248.39,0.00014027,2]
[352975954,1739470251428,-214.188731,0.00014027,2]
[352975955,1739470251437,-214.188731,0.00014027,2]
[352975956,1739470251447,-500.0,0.00014027,2]
[352975957,1739470251456,-214.188731,0.00014027,2]
[352975958,1739470251466,-214.188731,0.00014027,2]
[352975959,1739470251475,-500.0,0.00014027,2]
[352975960,1739470251485,-3356.66,0.00014027,2]
[352975961,1739470251495,-500.0,0.00014027,2]
[352975962,1739470251505,-538.22,0.00014027,2]
[352975963,1739470251515,-500.0,0.00014027,2]
[352975964,1739470251524,-500.0,0.00014027,2]
[352975965,1739470251534,-665.34,0.00014027,2]
[352975966,1739470251543,-500.0,0.00014027,2]
[352975967,1739470251552,-500.0,0.00014027,2]
[352975968,1739470251561,-500.0,0.00014027,2]
[352975969,1739470251570,-516.89851348,0.00014027,2]
[352975970,1739470251579,-950.97,0.00014027,2]
[352975971,1739470251588,-500.0,0.00014027,2]
[352975972,1739470251599,-500.0,0.00014027,2]
[352975973,1739470251608,-500.0,0.00014027,2]
[352975974,1739470251617,-500.0,0.00014027,2]
[352975975,1739470251627,-5258.07,0.00014027,2]
[352975976,1739470251636,-500.0,0.00014027,2]
[352975977,1739470251645,-500.0,0.00014027,2]
[352975978,1739470251655,-1848.46,0.00014027,2]
[352975979,1739470251666,-2865.79,0.00014027,2]
[352975980,1739470251676,-500.0,0.00014027,2]
[352975981,1739470251687,-500.0,0.00014027,2]
[352975982,1739470251697,-500.0,0.00014027,2]
[352975983,1739470251707,-500.0,0.00014027,2]
[352975984,1739470251716,-500.0,0.00014027,2]
[352975985,1739470251726,-500.0,0.00014027,2]
[352975986,1739470251735,-192.72721376,0.00014027,2]
[352975987,1739470251744,-500.0,0.00014027,2]
[352975988,1739470251753,-2083.62038517,0.00014027,2]
[352975989,1739470252176,-47.9043,0.00013698,2]
[352975990,1739470252188,-452.0957,0.00013698,2]
[352975991,1739470252198,-500.0,0.00014027,2]
[352975992,1739470252207,-500.0,0.00014027,2]
[352975993,1739470252217,-5468.71,0.00014027,2]
[352975994,1739470252226,-500.0,0.00014027,2]
[352975995,1739470252236,-500.0,0.00014027,2]
[352975996,1739470252245,-13524.5,0.00014027,2]
[352975997,1739470252255,-500.0,0.00014027,2]
[352975998,1739470252264,-645.922417,0.00014027,2]
[352975999,1739470252276,-645.922417,0.00014027,2]
[352976000,1739470252286,-500.0,0.00014027,2]
[352976001,1739470252295,-645.922417,0.00014027,2]
[352976002,1739470252305,-1068.79,0.00014027,2]
[352976003,1739470252314,-645.92241889,0.00014027,2]
[352976004,1739470252325,-500.0,0.00014027,2]
[352976005,1739470252335,-500.0,0.00014027,2]
[352976006,1739470252345,-500.0,0.00014027,2]
[352976007,1739470252356,-500.0,0.00014027,2]
[352976008,1739470252366,-1080.9,0.00014027,2]
[352976009,1739470252376,-860.53,0.00014027,2]
[352976010,1739470252385,-500.0,0.00014027,2]
[352976011,1739470252397,-500.0,0.00014027,2]
[352976012,1739470252407,-564.43,0.00014027,2]
[352976013,1739470252417,-500.0,0.00014027,2]
[352976014,1739470252426,-500.0,0.00014027,2]
[352976015,1739470252436,-1138.27,0.00014027,2]
[352976016,1739470252446,-500.0,0.00014027,2]
[352976017,1739470252455,-500.0,0.00014027,2]
[352976018,1739470252465,-500.0,0.00014027,2]
[352976019,1739470252474,-270.49757498,0.00014027,2]
[352976020,1739470252483,-500.0,0.00014027,2]
[352976021,1739470252493,-797.47343092,0.00014027,2]
[352976022,1739470252505,-506.06236576,0.00014027,2]
[352976023,1739470252517,-238.84420332,0.00014027,2]
[352976024,1739470252527,-500.0,0.00014027,2]
[352976025,1739470252535,-500.0,0.00014027,2]
[352976026,1739470252545,-500.0,0.00014027,2]
[352976027,1739470252555,-500.0,0.00014027,2]
[352976028,1739470252565,-805.58,0.00014027,2]
[352976029,1739470252575,-549.11,0.00014027,2]
[352976030,1739470252584,-500.0,0.00014027,2]
[352976031,1739470252593,-393.07911253,0.00014027,2]
[352976032,1739470252729,-106.92088747,0.00014027,2]
[352976033,1739470252740,-178.49610312,0.00014027,2]
[352976034,1739470253020,-1633.384394,0.00014027,2]
[352976035,1739470253032,-1894.98950288,0.00014027,2]
[352976036,1739470253042,-1313.58,0.00014027,2]
[352976037,1739470253052,-500.0,0.00014027,2]
[352976038,1739470253061,-500.0,0.00014027,2]
[352976039,1739470253071,-8110.43049331,0.00014027,2]
[352976040,1739470253082,-7460.32795395,0.00014027,2]
[352976112,1739471431999,-300.0,9.999e-05,2]
[352976114,1739471432009,-2281.8522058,0.0001,2]
[352976116,1739471432021,-919.50929136,0.0001,2]
[352976119,1739471432032,-990.63850284,0.0001,2]
[352976121,1739471432042,-251.07442918,0.0001,2]
[352976123,1739471432054,-1842.92557082,0.0001,2]
[352976125,1739471432063,-2094.0,0.0001,2]
[352976127,1739471432073,-2094.0,0.0001,2]
[352976129,1739471432082,-2094.0,0.0001,2]
[352976131,1739471432092,-400.0,0.00010685,2]
[352976133,1739471432101,-420.0,0.00010999,2]
[352976135,1739471432111,-487.5098923,0.00011976,2]
[352976137,1739471432121,-250.0,0.00012224,2]
[352976139,1739471432131,-5720.66794279,0.00012701,2]
[352976142,1739471432142,-424.33694533,0.00012701,2]
[352976144,1739471432154,-476.9175,0.00012701,2]
[352976147,1739471432179,-4209.76447227,0.00012701,2]
[352976150,1739471432191,-846.39065047,0.00012701,2]
[352976152,1739471432203,-1299.49354754,0.00012701,2]
[352976154,1739471432214,-9127.02783346,0.00012881,2]
[352976156,1739471432231,-15772.97216654,0.00012881,2]
[352976158,1739471432241,-354.9488798,0.00012941,2]
[352976162,1739471432250,-1100.0,0.00012993,2]
[352976165,1739471432261,-154.604,0.0001333,2]
[352976168,1739471432270,-261.0492744,0.00013425,2]
[352976171,1739471432280,-182.95326227,0.00013598,2]
[352976175,1739471432290,-349.07655093,0.000136,2]
[352976177,1739471432301,-354.9488798,0.000136,2]
[352976179,1739471432311,-354.9488798,0.000136,2]
[352976181,1739471432320,-182.95326227,0.00013625,2]
[352976183,1739471432330,-182.95326227,0.00013652,2]
[352976185,1739471432340,-154.6488878,0.00013671,2]
[352976187,1739471432351,-215.9004297,0.00013671,2]
[352976189,1739471432361,-154.6488878,0.00013671,2]
[352976191,1739471432370,-215.9004297,0.00013671,2]
[352976193,1739471432380,-215.7800676,0.00013671,2]
[352976196,1739471432391,-154.5591815,0.00013671,2]
[352976197,1739471432400,-615.01260515,0.00013673,2]
[352976200,1739471432409,-500.0,0.00013673,2]
[352976201,1739471432419,-567.43366691,0.00013673,2]
[352976203,1739471432430,-267.93101906,0.00013673,2]
[352976205,1739471432440,-500.0,0.00013673,2]
[352976207,1739471432450,-540.3566061,0.00013673,2]
[352976209,1739471432460,-152.17188599,0.00013673,2]
[352976212,1739471432470,-500.0,0.00013673,2]
[352976214,1739471432480,-500.0,0.00013673,2]